Cogmind - Beta 10.2 @@@ ROGUE MODE // 2021.01.05 @ 10:05:52 Player: Demise Result: Destroyed by NK-0LA with NK-0LA's Tesla Doomcannon Performance ------------- Evolutions (1) 500 Regions Visited (6) 1200 Robots Destroyed (111) 555 Value Destroyed (2277) 2277 Prototype IDs (40) 800 Alien Tech Used (0) 0 Bonus (459) 459 TOTAL SCORE: 5791 Bonus ------- High Alert Combat Kills 118 Follower Combat Kills 52 Aligned with FarCom 300 Friendly Fire -11 Cogmind --------- Core Integrity 0/400 Matter 178/300 Energy 100/100 System Corruption 10% Temperature Cool (0) Movement Walking (130) Ox1 Location -8/Mines Parts ------- > --- POWER (1) -------- (None) > --- PROPULSION (2) --- Potential Leg Potential Leg > --- UTILITY (4) ------ Large Storage Unit Humpback Core Shielding > --- WEAPON (2) ------- Heavy Assault Rifle > --- INVENTORY (30) --- Makeshift Power Source Makeshift Power Source Large Storage Unit Medium Matter Pod (100) Gravity Neutralizing Apparatus Experimental Targeting Computer Advanced Launcher Guidance Computer Improved Armor Integrity Analyzer Advanced Transmission Jammer Cloak of Protection EX Chip 1 EX Chip 1 EX Chip 1 Hacking Suite EX Chip 2 EX Chip 2 Advanced Component Analysis Suite Heavy Assault Rifle Heavy Assault Rifle Improved Datajack Deploy-a-Sentry Peak State ------------ > --- POWER ------------ Reinforced Fission Core > --- PROPULSION ------- Potential Leg Potential Leg > --- UTILITY ---------- Humpback Humpback > --- WEAPON ----------- Autogun Autogun > --- INVENTORY -------- Makeshift Power Source Makeshift Power Source Makeshift Power Source Makeshift Power Source Advanced Myomer Leg Medium Matter Pod Medium Matter Pod Gravity Neutralizing Apparatus Experimental Sensor Array Signal Interpreter Experimental Targeting Computer Advanced Launcher Guidance Computer Improved Armor Integrity Analyzer Advanced Transmission Jammer Cloak of Protection Core Shielding EX Chip 1 EX Chip 1 EX Chip 1 EX Chip 1 EX Chip 1 EX Chip 1 EX Chip 1 Hacking Suite EX Chip 2 EX Chip 2 EX Chip 2 EX Chip 2 EX Chip 2 EX Chip 2 EX Chip 2 Advanced Component Analysis Suite Trap Reconfigurator AS-neutralizer No. 17b Heavy Assault Rifle Heavy Assault Rifle Heavy Assault Rifle Heavy Assault Rifle Autogun Improved Datajack Makeshift Hammer Deploy-a-Sentry [Rating: 49] Favorites ----------- Power Heavy Ion Engine Engine Heavy Ion Engine Power Core Reinforced Fission Core Propulsion Light Treads Treads Light Treads Leg Potential Leg Utility Large Storage Unit Device Tractor Beam Storage Large Storage Unit Processor Target Analyzer Hackware Hacking Suite Protection Light Armor Plating Weapon Autogun Energy Gun EM Pulse Gun Energy Cannon Advanced Beam Cannon Ballistic Gun Autogun Launcher Rocket Launcher Special Weapon Mining Laser Impact Weapon Makeshift Hammer Special Melee Weapon Improved Datajack Build | -11 -10 -10 -9 -9 -9 -8 ------- Run | Scr Mat Min Mat Min Exi Min Slots Evolved 2 | . . . 2 . . . Power . | . . . . . . . Propulsion . | . . . . . . . Utility 2 | . . . 2 . . . Weapon . | . . . . . . . Parts Attached 134 | 8 29 5 52 6 31 3 Power 10 | 1 3 . 4 . 2 . Engine 9 | 1 3 . 4 . 1 . Core 1 | . . . . . 1 . Reactor . | . . . . . . . Propulsion 27 | 2 6 . 11 2 6 . Treads 23 | 2 6 . 11 2 2 . Leg 4 | . . . . . 4 . Wheel . | . . . . . . . Hover . | . . . . . . . Flight . | . . . . . . . Utility 32 | 2 5 . 10 1 12 2 Device 1 | 1 . . . . . . Storage 18 | 1 4 . 3 1 8 1 Processor 2 | . 1 . 1 . . . Hackware 1 | . . . 1 . . . Protection 10 | . . . 5 . 4 1 Artifact . | . . . . . . . Weapon 65 | 3 15 5 27 3 11 1 Energy Gun 14 | 3 7 1 3 . . . Energy Cannon 1 | . . . 1 . . . Ballistic Gun 34 | . 5 3 16 2 7 1 Ballistic Cannon . | . . . . . . . Launcher 4 | . . 1 . 1 2 . Special Weapon 10 | . 3 . 7 . . . Impact Weapon 1 | . . . . . 1 . Slashing Weapon . | . . . . . . . Piercing Weapon . | . . . . . . . Special Melee Weapon 1 | . . . . . 1 . Unidentified Prototypes 3 | . . . 3 . . . Parts Lost 22 | . 2 . 1 2 13 4 Power 3 | . . . . . 2 1 Propulsion 5 | . . . . 1 4 . Utility 6 | . 1 . 1 . 3 1 Weapon 8 | . 1 . . 1 4 2 Highest Loss Streak 8 | . 1 . 1 1 8 4 Average Slot Usage (%) 94 | . 99 100 97 99 85 77 Engine 10 | . 14 14 10 11 5 . Core 1 | . . . . . 4 10 Treads 20 | . 27 28 21 21 12 . Leg 2 | . . . . . 9 22 Storage 21 | . 22 28 22 29 17 22 Processor 5 | . . . 6 11 8 . Protection 6 | . . . 13 3 5 2 Energy Gun 5 | . 15 20 . . . . Ballistic Gun 15 | . 9 7 19 21 16 21 Naked Turns . | . . . . . . . Heaviest Build 187 | 13 41 43 69 78 187 187 Greatest Support 60 | 40 40 40 43 43 60 60 Greatest Overweight (x) 3 | 2 1 1 1 1 3 3 Average Overweight (x) 1 | . . . . 1 1 3 Largest Inventory Capacity 44 | 6 16 16 18 24 44 44 Average Capacity 19 | 4 10 16 17 22 29 41 Most Carried 44 | 4 16 16 18 24 44 44 Average Carried 17 | 3 10 15 17 21 23 39 Final Capacity 44 | 6 16 16 18 24 44 30 Final Carried 44 | 4 16 16 18 23 44 21 Class Distribution -------------------- 66% | Mutant 30% | Hauler-Mutant Dominant Class ---------------- Mutant | -10/Materials Mutant | -10/Mines Mutant | -9/Materials Hauler-Mutant | -9/Mines Hauler-Mutant | -9/Exiles Hauler-Mutant | -8/Mines Resources | -11 -10 -10 -9 -9 -9 -8 ----------- Run | Scr Mat Min Mat Min Exi Min Matter Collected 3711 | 346 303 77 1451 215 1319 . Remotely 169 | 115 54 . . . . . Salvage Created 3935 | 167 763 74 2210 249 472 . Parts 275 | 10 49 12 137 12 55 . Haulers Intercepted 8 | . 2 . 6 . . . Recyclers Shooed 1 | . . . 1 . . . Parts Field Recycled . | . . . . . . . Retrieved Matter . | . . . . . . . Parts Self-Destructed . | . . . . . . . Prevented . | . . . . . . . Kills | -11 -10 -10 -9 -9 -9 -8 ------- Run | Scr Mat Min Mat Min Exi Min Combat Hostiles Destroyed 66 | . 12 6 35 7 6 . Guns 60 | . 12 4 33 6 5 . AOE 5 | . . 2 1 1 1 . Classes Destroyed 15 | 3 6 . 2 1 3 . Worker 6 | 2 1 . 3 . . . Builder 5 | . 1 . 4 . . . Tunneler 5 | 3 1 . 1 . . . Hauler 8 | . 2 . 6 . . . Recycler 5 | 1 1 . 3 . . . Operator 3 | . 1 . 2 . . . Turret 1 | . . . . . 1 . Watcher 7 | . 2 . 5 . . . Swarmer 15 | . 3 6 6 . . . Grunt 32 | . 9 . 20 3 . . Brawler 2 | . . . 1 1 . . Sentry 10 | . . . 8 2 . . Demolisher 1 | . . . . 1 . . Zionite 8 | . . . . . 8 . Assembled 5 | . . . . . 5 . Best Kill Streak 10 | 4 4 3 7 2 10 . Combat Bots Only 4 | . 4 3 4 2 3 . Max Kills in Single Turn 2 | 1 2 2 2 1 1 . Gunslinging . | . . . . . . . Exploded 2 | . . 2 1 1 1 . Melee . | . . . . . . . Uniques/NPCs Destroyed 4 | . . . . . 4 . 8R-AWN (-9/Exiles) EX-BIN (-9/Exiles) EX-HEX (-9/Exiles) EX-DEC (-9/Exiles) Combat | -11 -10 -10 -9 -9 -9 -8 -------- Run | Scr Mat Min Mat Min Exi Min Damage Taken 5330 | 20 487 177 1290 641 1686 1029 Core 507 | . 87 16 111 51 86 156 Absorbed by Shields . | . . . . . . . Core Remaining (%) 79 | 100 . 58 . . . . Volleys Fired 399 | 13 70 14 154 21 113 14 Largest 2 | 2 2 2 2 2 2 2 Hottest 100 | 80 100 80 100 56 56 46 Shots Fired 750 | 21 126 25 294 42 215 27 Gun 710 | 21 114 24 280 39 205 27 Cannon . | . . . . . . . Launcher 14 | . . 1 . 3 10 . Special 26 | . 12 . 14 . . . Kinetic 590 | . 49 16 254 39 205 27 Thermal 64 | 16 34 . 14 . . . Explosive 14 | . . 1 . 3 10 . Electromagnetic 82 | 5 43 8 26 . . . Robot Hit Streak 16 | 12 16 4 15 13 16 8 Robot Miss Streak 4 | 1 3 2 3 1 4 2 Penetration Max . | . . . . . . . Secondary Targets 2 | . . . 1 . 1 . Max Gunslinging Chain 1 | . . . 1 . 1 . Shots Hit Robots 506 | 17 79 13 200 32 143 22 Core Hits 191 | 7 36 7 81 9 46 5 Critical Hits 17 | . . . 8 2 7 . Critical Kills 6 | . . . 4 1 1 . Critical Parts Destroyed 6 | . . . 4 . 2 . Melee Attacks 10 | . . . . . 10 . Impact 6 | . . . . . 6 . Slashing . | . . . . . . . Piercing . | . . . . . . . Sneak Attacks 4 | . . . . . 4 . Combat Hostiles . | . . . . . . . Follow-up Attacks . | . . . . . . . Damage Inflicted 8588 | 242 1034 258 3099 725 2919 311 Guns 7014 | 195 900 131 2965 441 2071 311 Cannons . | . . . . . . . Explosions 1036 | 47 130 127 88 266 378 . Melee 470 | . . . . . 470 . Ramming 68 | . 4 . 46 18 . . Kinetic 5857 | . 274 81 2679 441 2071 311 Thermal 532 | 190 254 . 88 . . . Explosive 771 | . . 127 . 266 378 . Electromagnetic 890 | 52 502 50 286 . . . Impact 470 | . . . . . 470 . Slashing . | . . . . . . . Piercing . | . . . . . . . Highest Corruption 10 | . . . 1 1 1 10 Average Corruption 1 | . . . 1 1 1 2 Corruption Purged . | . . . . . . . Effects 28 | . . . 4 4 19 1 Message Errors 16 | . . . 2 1 13 . Energy Discharges 5 | . . . . 2 3 . Data Loss (minor) 4 | . . . 1 1 2 . Targeting Errors 2 | . . . 1 . . 1 Weapon Failures 1 | . . . . . 1 . Overload Shots . | . . . . . . . Overflow Damage 302 | 7 4 . 6 37 248 . Projectiles 29 | . . . . . 29 . Explosions 48 | 7 4 . . 37 . . Melee 225 | . . . 6 . 219 . Knockbacks 2 | . . . . . 2 . Impact 1 | . . . . . 1 . Kinetic . | . . . . . . . Secondary 1 | . . . . . 1 . Self-Inflicted Damage 84 | 20 40 . 15 . 9 . Shots 5 | 1 2 . 1 . 1 . Rammed 5 | . 1 . 3 1 . . Targets Rammed 7 | . 1 . 5 1 . . Kicked . | . . . . . . . Crushed 2 | . . . 2 . . . Highest Temperature 177 | 90 96 54 177 47 62 50 Average Temperature 25 | 33 25 28 28 13 22 23 Received Heat Transfer 789 | . 222 . 456 111 . . Siege Activations . | . . . . . . . Robots Corrupted 1 | . . . 1 . . . Combat Hostiles 1 | . . . 1 . . . Parts Fried 6 | . 3 . 1 . 2 . Impact Corruptions 6 | . . . 1 . 5 . Robots Melted . | . . . . . . . Combat Hostiles . | . . . . . . . Parts Melted 2 | 2 . . . . . . Heat Transferred 1000 | 375 525 . 100 . . . Parts Sabotaged . | . . . . . . . Parts Stolen . | . . . . . . . Parts Stripped . | . . . . . . . Power Chain Reactions 7 | 1 4 . 2 . . . Missiles Intercepted . | . . . . . . . Alert | -11 -10 -10 -9 -9 -9 -8 ------- Run | Scr Mat Min Mat Min Exi Min Peak Influence 759 | 30 190 90 759 425 . . Initial 290 | . 19 13 . 290 . . Average 194 | 11 70 30 285 339 . . Maximum Alert Level 3 | . . . 3 2 . . Low Security (%) 62 | 100 100 100 41 . . 100 Level 1 23 | . . . 35 71 . . Level 2 9 | . . . 13 28 . . Level 3 4 | . . . 9 . . . Level 4 . | . . . . . . . Level 5 . | . . . . . . . High Security . | . . . . . . . Max Security . | . . . . . . . Squads Dispatched 10 | . 2 . 8 . . . Investigation 4 | . 1 . 3 . . . Extermination . | . . . . . . . Reinforcement 4 | . 1 . 3 . . . Assault 2 | . . . 2 . . . Garrison . | . . . . . . . Intercept . | . . . . . . . Construction Impeded . | . . . . . . . Haulers Reinforced . | . . . . . . . Stealth | -11 -10 -10 -9 -9 -9 -8 --------- Run | Scr Mat Min Mat Min Exi Min Distress Signals 5 | . 2 . 3 . . . Communications Jammed . | . . . . . . . Distress Signals . | . . . . . . . Times Spotted 129 | . 20 6 62 8 32 1 Peak Tracking Total 9 | . 4 3 5 2 9 1 Tactical Retreats 11 | . . . 6 . 5 . Traps | -11 -10 -10 -9 -9 -9 -8 ------- Run | Scr Mat Min Mat Min Exi Min Traps Triggered 4 | . 3 . 1 . . . Indirectly . | . . . . . . . Trap Hack Attempts . | . . . . . . . Triggered . | . . . . . . . Disarmed . | . . . . . . . Reprogrammed . | . . . . . . . Reused . | . . . . . . . Traps Extracted . | . . . . . . . Installed . | . . . . . . . Triggered . | . . . . . . . Exploded 2 | . . . . . 2 . Machines | -11 -10 -10 -9 -9 -9 -8 ---------- Run | Scr Mat Min Mat Min Exi Min Machines Disabled 14 | . 2 . 1 1 10 . Max in Single Turn 2 | . 1 . 1 1 2 . Machines Sabotaged . | . . . . . . . Garrisons Compromised . | . . . . . . . Overloaded Fab Kills . | . . . . . . . Fab Network Shutdowns . | . . . . . . . Hacking | -11 -10 -10 -9 -9 -9 -8 --------- Run | Scr Mat Min Mat Min Exi Min Machines Accessed 24 | . 7 1 14 . 2 . Terminals 16 | . 6 1 9 . . . Fabricators . | . . . . . . . Repair Stations 1 | . . . 1 . . . Recycling Units 3 | . 1 . 2 . . . Scanalyzers 2 | . . . 2 . . . Garrison Access . | . . . . . . . Total Hacks 79 | . 28 3 46 . 2 . Successful 53 | . 17 1 33 . 2 . Failed 23 | . 10 1 12 . . . Catastrophic 1 | . 1 . . . . . Database Lockouts 3 | . 1 1 1 . . . Manual 56 | . 21 3 31 . 1 . Terminals 55 | . 25 3 27 . . . Fabricators . | . . . . . . . Repair Stations 9 | . . . 9 . . . Recycling Units 7 | . 3 . 4 . . . Scanalyzers 6 | . . . 6 . . . Garrison Access . | . . . . . . . Terminal Hacks 17 | . 8 1 6 . 2 . Record 1 | . . . . . 1 . Part Schematic 1 | . 1 . . . . . Robot Schematic 1 | . . 1 . . . . Robot Analysis 3 | . 2 . 1 . . . Branch Access Points 2 | . 1 . 1 . . . Terminal Index 2 | . 1 . 1 . . . Locate Traps 1 | . . . 1 . . . Hauler Manifests 2 | . 1 . 1 . . . Zone Layout 3 | . 2 . 1 . . . EX-Prototype ID Bank 1 | . . . . . 1 . Fabricator Hacks . | . . . . . . . Repair Station Hacks 9 | . . . 9 . . . Scan Component 5 | . . . 5 . . . Repair 4 | . . . 4 . . . Recycling Unit Hacks 3 | . 2 . 1 . . . Process 1 | . 1 . . . . . Retrieve Matter 1 | . 1 . . . . . Retrieve Components 1 | . . . 1 . . . Scanalyzer 4 | . . . 4 . . . Insert Component 2 | . . . 2 . . . Analyze 2 | . . . 2 . . . Garrison Access Hacks . | . . . . . . . Unauthorized Hacks 20 | . 7 . 13 . . . Terminals 17 | . 7 . 10 . . . Track 3 | . 2 . 1 . . . Assimilate 4 | . 1 . 3 . . . Botnet 7 | . 3 . 4 . . . Disrupt 2 | . 1 . 1 . . . Operators 1 | . . . 1 . . . Fabricators . | . . . . . . . Repair Stations . | . . . . . . . Recycling Units 3 | . . . 3 . . . Reject 2 | . . . 2 . . . Tunnel 1 | . . . 1 . . . Scanalyzers . | . . . . . . . Garrison Access . | . . . . . . . Data Cores Recovered . | . . . . . . . Used . | . . . . . . . Hacking Detections 15 | . 7 . 8 . . . Full Trace Events 3 | . 1 . 2 . . . Feedback Events . | . . . . . . . Feedback Blocked . | . . . . . . . Robot Schematics Acquired 1 | . . 1 . . . . Robots Built . | . . . . . . . Matter . | . . . . . . . Time . | . . . . . . . Total Robot Build Rating . | . . . . . . . Part Schematics Acquired 3 | . 1 . 2 . . . Parts Built . | . . . . . . . Matter . | . . . . . . . Time . | . . . . . . . Total Part Build Rating . | . . . . . . . Parts Repaired 4 | . . . 4 . . . Time 129 | . . . 129 . . . Parts Recycled . | . . . . . . . Recycled Matter 227 | . 227 . . . . . Retrieved Matter 262 | . 262 . . . . . Retrieved Components . | . . . . . . . Parts Scanalyzed 2 | . . . 2 . . . Part Schematics Acquired 2 | . . . 2 . . . Parts Damaged . | . . . . . . . Bothacking | -11 -10 -10 -9 -9 -9 -8 ------------ Run | Scr Mat Min Mat Min Exi Min Used RIF Installer . | . . . . . . . Robots Hacked 4 | . . . . . 4 . Non-combat 3 | . . . . . 3 . Combat 1 | . . . . . 1 . Robot Hacks Applied 4 | . . . . . 4 . parse_system 4 | . . . . . 4 . Relay Couplers Released . | . . . . . . . Robots Rewired . | . . . . . . . Allies Hacked . | . . . . . . . Hacks Repelled . | . . . . . . . Allies | -11 -10 -10 -9 -9 -9 -8 -------- Run | Scr Mat Min Mat Min Exi Min Total Allies 6 | . 1 3 2 . . . Largest Group 3 | . 1 3 3 . . . Highest-Rated Group 40 | . 10 40 40 . . . Highest-Rated Ally 16 | . 10 16 16 . . . Total Orders 3 | . 3 . . . . . STAY 2 | . 2 . . . . . FOLLOW 1 | . 1 . . . . . Ally Attacks 15 | . . . 15 . . . Total Damage 183 | . . . 183 . . . Kills 2 | . . . 2 . . . Allies Corrupted . | . . . . . . . Allies Melted . | . . . . . . . Intel | -11 -10 -10 -9 -9 -9 -8 ------- Run | Scr Mat Min Mat Min Exi Min Robot Analysis Total 3 | . 2 . 1 . . . Derelict Logs Recovered 1 | . . 1 . . . . Drone Launches . | . . . . . . . Drone Recoveries . | . . . . . . . Exploration | -11 -10 -10 -9 -9 -9 -8 ------------- Run | Scr Mat Min Mat Min Exi Min Turns Passed 9620 | 128 1790 912 3637 571 2473 109 Spaces Moved 4417 | 52 914 497 1580 275 1077 22 Core 8 | 8 . . . . . . Treads 3904 | 44 914 497 1580 275 594 . Legs 505 | . . . . . 483 22 Wheels . | . . . . . . . Hover . | . . . . . . . Flight . | . . . . . . . Fastest Speed 50 | 50 160 160 160 180 130 210 Average Speed 176 | 149 163 174 179 180 183 210 Slowest Speed 210 | 160 180 180 180 180 210 210 Overloaded Moves . | . . . . . . . Propulsion Burnouts . | . . . . . . . Robots Hopped . | . . . . . . . Cave-ins Triggered . | . . . . . . . Exploration Rate (%) 62 | 4 97 99 96 38 89 13 Regions Visited 6 Branch Regions 4 Pre-discovered Areas 2 | . . . 1 . 1 . Known Exits Taken 3 | . 1 1 1 . . . Unknown Exits Taken 3 | 1 . . . 1 1 . Scrap Searched 2 | . . 1 . 1 . . Spaces Dug 19 | . 7 . 12 . . . Terrain Destroyed 111 | 2 19 10 28 34 18 . Melee . | . . . . . . . Projectile 25 | . 11 . 14 . . . AOE 86 | 2 8 10 14 34 18 . Terrain Rammed . | . . . . . . . Walls Destroyed . | . . . . . . . Machines Disabled . | . . . . . . . Actions | -11 -10 -10 -9 -9 -9 -8 --------- Run | Scr Mat Min Mat Min Exi Min Total 5592 | 79 1073 520 2123 318 1417 62 Wait 344 | . 20 . 265 . 36 23 Move 4411 | 51 913 496 1579 274 1076 22 Hop . | . . . . . . . Pick Up 163 | 6 21 2 23 11 100 . Fast Attach 34 | 6 11 . 11 . 6 . Attach 26 | 2 2 . 3 2 14 3 Detach 7 | . 1 . 2 . 4 . Swap 74 | . 16 5 38 4 11 . Drop 117 | 1 18 3 43 5 47 . Fire 399 | 13 70 14 154 21 113 14 Melee 10 | . . . . . 10 . Ram . | . . . . . . . Kick . | . . . . . . . Crush 7 | . 1 . 5 1 . . Escape Stasis . | . . . . . . . Rewire . | . . . . . . . Trap . | . . . . . . . Miscellaneous . | . . . . . . . Route ------- -11/Scrapyard -10/Materials (discovered 5 exits: *Mat x3 / *Min x2) -10/Mines (discovered 2 exits: *Mat x2) -9/Materials (discovered 4 exits: *Mat x3 / *Min) -9/Mines -9/Exiles -8/Mines History --------- Turn | Location | Event 13 | -11/Scrapyard | Discovered new exit (range 15) 129 | -11/Scrapyard | Entered Materials 274 | -10/Materials | Central database locked down 310 | -10/Materials | Build established: Mutant 773 | -10/Materials | Discovered new exit (range 16) 795 | -10/Materials | Identified exit to Materials 1263 | -10/Materials | Discovered exit to Materials (range 15) 1508 | -10/Materials | Discovered new exit (range 7) 1571 | -10/Materials | Identified exit to Mines 1618 | -10/Materials | Discovered exit to Materials (range 10) 1919 | -10/Materials | Entered Mines 1937 | -10/Mines | Central database locked down 2063 | -10/Mines | Received a Rocket Launcher from a helpful Derelict 2184 | -10/Mines | Found a damaged Exp. Sensor Array with a note attached 2188 | -10/Mines | Found Prototype Device 2241 | -10/Mines | Learned 4 Materials zone layouts 2378 | -10/Mines | Discovered exit to Materials (range 8) 2569 | -10/Mines | Discovered exit to Materials (range 5) 2797 | -10/Mines | Assisted by bots powering up and referring to "LRC-V3" 2831 | -10/Mines | Entered Materials 2831 | -9/Materials | Accompanied by 3 allies 2831 | -9/Materials | Evolved 2 slots: Utility x2 2832 | -9/Materials | Identified exit to Mines 2832 | -9/Materials | Identified exit to Materials 3469 | -9/Materials | Discovered exit to Materials (range 10) 3826 | -9/Materials | Central database locked down 4785 | -9/Materials | Discovered exit to Materials (range 14) 5116 | -9/Materials | Repaired Lgt. Treads 5168 | -9/Materials | Repaired Hvy. Ion Engine 5196 | -9/Materials | Repaired Lgt. Treads 5223 | -9/Materials | Repaired Lgt. Treads 6031 | -9/Materials | First assault squad dispatched 6046 | -9/Materials | Identified Exp. Sensor Array 6468 | -9/Materials | Entered Mines 6793 | -9/Mines | Deemed a non-threat by the Exiles lab entrance 6793 | -9/Mines | Discovered new exit (range 5) 6903 | -9/Mines | A weapon hastily lodged in a ceiling crevice suddenly fell to the ground 6927 | -9/Mines | Build established: Hauler-Mutant 6961 | -9/Mines | Assembled infested the area 7039 | -9/Mines | Entered Exiles 7086 | -9/Exiles | Met 8R-AWN 7120 | -9/Exiles | Met EX-HEX 7319 | -9/Exiles | Met EX-DEC 7376 | -9/Exiles | Learned location of Zion (-7) 7414 | -9/Exiles | Met EX-BIN 7444 | -9/Exiles | Aligned with FarCom system 7446 | -9/Exiles | Given EX-Vault access code 7494 | -9/Exiles | Opened EX-Vault 7504 | -9/Exiles | Found Potential Leg 7507 | -9/Exiles | Found Potential Leg 7512 | -9/Exiles | Found Trap Reconfigurator 7525 | -9/Exiles | Found Cloak of Protection 7568 | -9/Exiles | Warned to stay clear of 0b10 Research branches 7756 | -9/Exiles | Discovered new exit (range 10) 8224 | -9/Exiles | Attacked by the Exiles 8378 | -9/Exiles | Core integrity fell below 50% 8417 | -9/Exiles | Lost 8 parts (2p3n1u2w) 8449 | -9/Exiles | Destroyed 8R-AWN 8463 | -9/Exiles | Found Exp. Targeting Computer 8477 | -9/Exiles | Found AS-neutralizer No. 17b 8592 | -9/Exiles | Lost 3 parts (1u2w) 8720 | -9/Exiles | Destroyed EX-BIN 8759 | -9/Exiles | Destroyed EX-HEX 8835 | -9/Exiles | Destroyed EX-DEC 8888 | -9/Exiles | Found Deploy-a-Sentry 9512 | -9/Exiles | Stole four prototypes: Potential Leg, Cloak of Protection, Trap Reconfigurator, Deploy-a-Sentry 9512 | -9/Exiles | Entered Mines 9576 | -8/Mines | NK-0LA came to Exiles' defense 9599 | -8/Mines | Core integrity fell below 20% 9620 | -8/Mines | System corruption reached 10% 9621 | -8/Mines | Destroyed by NK-0LA with NK-0LA's Tesla Doomcannon Last Messages --------------- 09507_ Acquired Mak. Power Source. A strange signal echoes through the mines. LOCATION=UNKNOWN GOAL=ESCAPE 09553_ K-01 Serf collects debris. 09571_ K-01 Serf cleans the Pressure Siphon. 09572_ K-01 Serf collects debris. 09574_ K-01 Serf cleans the Pressure Siphon. 09576_ NK-0LA: "I came as fast as I could... Wait, it was you!" 09579_ Pressure Siphon disabled. 09579_ K-01 Serf collects debris. 09600_ Humpback destroyed. 09601_ K-01 Serf collects debris. 09602_ Autogun destroyed. 09603_ K-01 Serf collects debris. 09614_ System corrupted: Autogun targeting data glitched. 09615_ Rnf. Fission Core destroyed. 09615_ K-01 Serf collects debris. 09619_ Autogun destroyed. 09619_ R-06 Scavenger collects EX Chip 2. Map ----- +----------------------------------------------------+ | | | | | | | | | | | | | | | | | | | | | | | ?????????????????????????????????? | | ?????????????????????????????????? | | ???????????#######????????#####??? | | ??????????## ##??????# ##?? | | ??????????# ##???## #?? | | ??????????# ##?## #?? | | ??????????## ### #??? | | ???????????# #???? | | ???????????# ##????? | | ??????????# ##?????? | | ????????# ![#??????? | | ?????? k !!##?????? | | ????? ### %%"%!!#?????? | | ????? #??## %%%k!!#?????? | | ????? #????## !%%%@!#?????? | | ????? ?????## %%%!##?????? | | ?????? ??????# r =[!#??????? | | ??????????????# !/*!#??????? | | ?????????????# x ##??????? | | ?????????? ###???????? | | ?????????# ###?????????? | | ?????????##### ####????????????? | | ?????????????#k ?????????????????? | | ?????????????# ??????????????????? | | ?????????????????????????????????? | | ?????????????????????????????????? | | ?????????????????????????????????? | | ?????????????????????????????????? | | ?????????????????????????????????? | | ?????????????????????????????????? | | ?????????????????????????????????? | | ?????????????????????????????????? | | ?????????????????????????????????? | | ?????????????????????????????????? | | ?????????????????????????????????? | | ?????????????????????????????????? | | ?????????????????????????????????? | | ?????????????????????????????????? | | ?????????????????????????????????? | +----------------------------------------------------+ Best States ------------- Heat Dissipation 28 Energy Generation 19 Energy Capacity 310 Matter Stores 300 Matter Capacity 300 Sight Range 16 Terrain Scan Density 10 Armor Coverage 300 Core Shielding 20 Utility Shielding 66 Evasion (%) 40 Target Analysis 5 Recoil Reduction 2 Offensive Hacking 10 Item Schematics ----------------- Hcp. Storage Unit | -10/Materials | Hacked Exp. Sensor Array | -9/Materials | Scanalyzed Hacking Suite | -9/Materials | Scanalyzed Robot Schematics ------------------ W-16 Scout | -10/Mines | Hacked Fabricated ------------ Nothing Alien Tech Used ----------------- None Achievements -------------- None Challenges ------------ None Game ------ Seed MachineColdDevice Manual? 0 Play Time 01:00:34 Cumulative 174.1 hours Start 2021.01.05 @ 09:05:40 End 2021.01.05 @ 10:05:52 Sessions 1 Manual Loads 0 Difficulty Rogue Special Mode None Game No. 159 Rogue 159 Adventurer 0 Explorer 0 Win Type - Total 0 Types 0/0/0/0/0/0/0/0/0 Lore% 58 Gallery% 68 Achievement% 54 Wizard Run 0 Options --------- ASCII 0 Keyboard 1 Movement Numpad Keybinds 0 Fullscreen 1 Font 12/Terminus Map View 83x54 Tactical HUD 1 Map Filters NONE Filters NONE Steam 1 RUN: 5072f679-1a81-4c28-b34c-12e2a2948093